Cogmind - Beta 10.1 @@@ ROGUE MODE // 2020.10.16 @ 20:13:40 Player: Ischenous Result: Destroyed by G-47 Trooper with Particle Gun Performance ------------- Evolutions (2) 1000 Regions Visited (3) 600 Robots Destroyed (29) 145 Value Destroyed (1088) 1088 Prototype IDs (0) 0 Alien Tech Used (0) 0 Bonus (0) 0 TOTAL SCORE: 2833 Bonus ------- None Cogmind --------- Core Integrity 0/550 Matter 290/300 Energy 100/100 System Corruption 1% Temperature Cool (18) Movement Core (100) Ox1 Location -8/Materials Parts ------- > --- POWER (2) -------- (None) > --- PROPULSION (2) --- (None) > --- UTILITY (5) ------ Small Storage Unit Visual Processing Unit > --- WEAPON (2) ------- Katana > --- INVENTORY (6) ---- Improved Ion Engine Aluminum Leg Aluminum Leg Airjet Datajack Peak State ------------ > --- POWER ------------ Light Nuclear Core Light Nuclear Core > --- PROPULSION ------- Advanced Treads Advanced Treads > --- UTILITY ---------- Heat Sink Small Storage Unit Visual Processing Unit Advanced Terrain Scanner ECM Suite > --- WEAPON ----------- Pulse Rifle Improved Light Cannon > --- INVENTORY -------- Aluminum Leg Heavy EM Pulse Gun Beam Rifle Beam Rifle Improved Light Cannon Datajack [Rating: 26] Favorites ----------- Power Light Nuclear Core Engine Light Ion Engine Power Core Light Nuclear Core Propulsion Advanced Treads Treads Advanced Treads Leg Aluminum Leg Flight Unit Flight Unit Utility Small Storage Unit Device ECM Suite Storage Small Storage Unit Processor Visual Processing Unit Weapon Improved Light Cannon Energy Gun Beam Rifle Ballistic Gun Light Assault Rifle Ballistic Cannon Improved Light Cannon Launcher Shock Bomb Launcher Slashing Weapon Katana Build | -11 -10 -9 -8 ------- Run | Scr Mat Mat Mat Slots Evolved 4 | . . 2 2 Power 1 | . . 1 . Propulsion . | . . . . Utility 3 | . . 1 2 Weapon . | . . . . Parts Attached 42 | 6 1 16 19 Power 10 | 1 . 4 5 Engine 6 | 1 . 2 3 Core 4 | . . 2 2 Reactor . | . . . . Propulsion 11 | 2 . 6 3 Treads 2 | . . 2 . Leg 5 | 2 . . 3 Wheel . | . . . . Hover . | . . . . Flight 4 | . . 4 . Utility 7 | 1 1 2 3 Device 5 | . 1 2 2 Storage 1 | 1 . . . Processor 1 | . . . 1 Hackware . | . . . . Protection . | . . . . Artifact . | . . . . Weapon 14 | 2 . 4 8 Energy Gun 5 | . . 1 4 Energy Cannon . | . . . . Ballistic Gun 4 | 2 . 2 . Ballistic Cannon 3 | . . 1 2 Launcher 1 | . . . 1 Special Weapon . | . . . . Impact Weapon . | . . . . Slashing Weapon 1 | . . . 1 Piercing Weapon . | . . . . Special Melee Weapon . | . . . . Unidentified Prototypes . | . . . . Parts Lost 31 | . . 12 19 Power 9 | . . 3 6 Propulsion 7 | . . 4 3 Utility 5 | . . 1 4 Weapon 10 | . . 4 6 Highest Loss Streak 9 | . . 9 9 Average Slot Usage (%) 81 | . 85 76 84 Engine 6 | . 14 4 5 Core 8 | . . 10 9 Treads 9 | . . 10 11 Leg 8 | . 28 4 5 Flight 1 | . . 4 . Device 13 | . . 11 18 Storage 10 | . 14 11 9 Processor 4 | . . . 9 Energy Gun 5 | . . 3 8 Ballistic Gun 7 | . 28 9 . Ballistic Cannon 3 | . . 4 4 Launcher 1 | . . . 3 Naked Turns . | . . . . Heaviest Build 29 | 10 11 23 29 Greatest Support 44 | 20 20 44 44 Greatest Overweight (x) 2 | 2 . 2 2 Average Overweight (x) . | . . . . Largest Inventory Capacity 6 | 6 6 6 6 Average Capacity 5 | 5 6 6 6 Most Carried 6 | 5 6 6 6 Average Carried 4 | 2 3 5 5 Final Capacity 6 | 6 6 6 6 Final Carried 6 | 2 5 6 5 Class Distribution -------------------- 100% | Mutant Dominant Class ---------------- Mutant | -10/Materials Mutant | -9/Materials Mutant | -8/Materials Resources | -11 -10 -9 -8 ----------- Run | Scr Mat Mat Mat Matter Collected 817 | 144 107 214 352 Remotely . | . . . . Salvage Created 1103 | . 51 176 876 Parts 62 | . 1 15 46 Haulers Intercepted . | . . . . Recyclers Shooed . | . . . . Parts Field Recycled . | . . . . Retrieved Matter . | . . . . Parts Self-Destructed . | . . . . Prevented . | . . . . Kills | -11 -10 -9 -8 ------- Run | Scr Mat Mat Mat Combat Hostiles Destroyed 26 | . 1 7 18 Melee 3 | . . . 3 Guns 12 | . 1 4 7 Cannons 8 | . . 3 5 AOE 2 | . . . 2 Classes Destroyed 7 | . 1 2 4 Recycler 1 | . . . 1 Watcher 2 | . . . 2 Swarmer 6 | . . 4 2 Grunt 12 | . 1 . 11 Duelist 1 | . . . 1 Sentry 6 | . . 3 3 Hunter 1 | . . . 1 Best Kill Streak 4 | . 1 4 4 Combat Bots Only 4 | . 1 4 4 Max Kills in Single Turn 1 | . 1 1 1 Gunslinging . | . . . . Exploded 1 | . . . 1 Melee 1 | . . . 1 Uniques/NPCs Destroyed . | . . . . Combat | -11 -10 -9 -8 -------- Run | Scr Mat Mat Mat Damage Taken 3390 | . 122 1261 2007 Core 871 | . . 312 559 Absorbed by Shields . | . . . . Core Remaining (%) 74 | 100 100 22 . Volleys Fired 111 | . 6 35 70 Largest 2 | . 2 2 2 Hottest 102 | . 40 43 102 Shots Fired 169 | . 12 47 110 Gun 118 | . 12 34 72 Cannon 47 | . . 13 34 Launcher 4 | . . . 4 Special . | . . . . Kinetic 93 | . 12 47 34 Thermal 49 | . . . 49 Explosive . | . . . . Electromagnetic 27 | . . . 27 Robot Hit Streak 13 | . 4 13 11 Robot Miss Streak 4 | . 1 2 4 Penetration Max . | . . . . Secondary Targets . | . . . . Shots Hit Robots 122 | . 8 35 79 Core Hits 52 | . 3 12 37 Critical Hits 1 | . . . 1 Critical Kills 1 | . . . 1 Critical Parts Destroyed . | . . . . Melee Attacks 3 | . . . 3 Impact . | . . . . Slashing 3 | . . . 3 Piercing . | . . . . Sneak Attacks . | . . . . Combat Hostiles . | . . . . Follow-up Attacks . | . . . . Damage Inflicted 2228 | . 87 500 1641 Guns 1229 | . 87 280 862 Cannons 618 | . . 220 398 Explosions 280 | . . . 280 Melee 100 | . . . 100 Ramming 1 | . . . 1 Kinetic 985 | . 87 500 398 Thermal 703 | . . . 703 Explosive . | . . . . Electromagnetic 439 | . . . 439 Impact . | . . . . Slashing 100 | . . . 100 Piercing . | . . . . Highest Corruption 1 | . . . 1 Average Corruption 1 | . . . 1 Corruption Purged . | . . . . Effects 1 | . . . 1 Targeting Errors 1 | . . . 1 Overload Shots . | . . . . Overflow Damage . | . . . . Projectiles . | . . . . Explosions . | . . . . Melee . | . . . . Knockbacks 5 | . . . 5 Impact . | . . . . Kinetic 5 | . . . 5 Secondary . | . . . . Self-Inflicted Damage 76 | . . . 76 Shots 3 | . . . 3 Rammed 1 | . . . 1 Targets Rammed 1 | . . . 1 Kicked . | . . . . Crushed . | . . . . Highest Temperature 350 | . 18 184 350 Average Temperature 71 | . 11 78 72 Received Heat Transfer 1089 | . 54 288 747 Effects 1 | . . . 1 Shutdowns 1 | . . . 1 Siege Activations . | . . . . Robots Corrupted 1 | . . . 1 Combat Hostiles 1 | . . . 1 Parts Fried 2 | . . . 2 Impact Corruptions . | . . . . Robots Melted . | . . . . Combat Hostiles . | . . . . Parts Melted 1 | . . . 1 Heat Transferred 1382 | . . . 1382 Parts Sabotaged . | . . . . Parts Stolen . | . . . . Parts Stripped . | . . . . Power Chain Reactions 2 | . . . 2 Missiles Intercepted . | . . . . Alert | -11 -10 -9 -8 ------- Run | Scr Mat Mat Mat Peak Influence 323 | . 69 108 323 Initial 28 | . . 28 12 Average 69 | . 29 47 104 Maximum Alert Level 1 | . . . 1 Low Security (%) 94 | 100 100 100 87 Level 1 5 | . . . 12 Level 2 . | . . . . Level 3 . | . . . . Level 4 . | . . . . Level 5 . | . . . . High Security . | . . . . Max Security . | . . . . Squads Dispatched 3 | . . . 3 Investigation 2 | . . . 2 Extermination . | . . . . Reinforcement 1 | . . . 1 Assault . | . . . . Garrison . | . . . . Intercept . | . . . . Construction Impeded . | . . . . Haulers Reinforced . | . . . . Stealth | -11 -10 -9 -8 --------- Run | Scr Mat Mat Mat Distress Signals 4 | . 2 . 2 Communications Jammed . | . . . . Distress Signals . | . . . . Times Spotted 63 | . 10 11 42 Peak Tracking Total 10 | . 3 4 10 Tactical Retreats 14 | . 3 1 10 Traps | -11 -10 -9 -8 ------- Run | Scr Mat Mat Mat Traps Triggered 5 | . . 2 3 Indirectly 1 | . . . 1 Trap Hack Attempts . | . . . . Triggered . | . . . . Disarmed . | . . . . Reprogrammed . | . . . . Reused . | . . . . Traps Extracted . | . . . . Installed . | . . . . Triggered . | . . . . Machines | -11 -10 -9 -8 ---------- Run | Scr Mat Mat Mat Machines Disabled 3 | . . . 3 Max in Single Turn 1 | . . . 1 Machines Sabotaged . | . . . . Garrisons Compromised . | . . . . Overloaded Fab Kills . | . . . . Fab Network Shutdowns . | . . . . Hacking | -11 -10 -9 -8 --------- Run | Scr Mat Mat Mat Machines Accessed 6 | . 4 1 1 Terminals 4 | . 3 1 . Fabricators . | . . . . Repair Stations 1 | . . . 1 Recycling Units 1 | . 1 . . Scanalyzers . | . . . . Garrison Access . | . . . . Total Hacks 26 | . 21 1 4 Successful 17 | . 12 1 4 Failed 9 | . 9 . . Catastrophic 2 | . 2 . . Database Lockouts . | . . . . Manual . | . . . . Terminals 15 | . 14 1 . Fabricators . | . . . . Repair Stations 4 | . . . 4 Recycling Units 7 | . 7 . . Scanalyzers . | . . . . Garrison Access . | . . . . Terminal Hacks 10 | . 9 1 . Level Access Points 1 | . 1 . . Emergency Access Points 1 | . 1 . . Recycling Unit Index 1 | . 1 . . Alert Level 3 | . 3 . . Locate Traps 1 | . 1 . . Dispatch Records 1 | . . 1 . Transport Status 1 | . 1 . . Zone Layout 1 | . 1 . . Fabricator Hacks . | . . . . Repair Station Hacks 4 | . . . 4 Scan Component 2 | . . . 2 Repair 2 | . . . 2 Recycling Unit Hacks 3 | . 3 . . Report Inventory 1 | . 1 . . Retrieve Components 2 | . 2 . . Scanalyzer . | . . . . Garrison Access Hacks . | . . . . Unauthorized Hacks . | . . . . Terminals . | . . . . Fabricators . | . . . . Repair Stations . | . . . . Recycling Units . | . . . . Scanalyzers . | . . . . Garrison Access . | . . . . Data Cores Recovered . | . . . . Used . | . . . . Hacking Detections 6 | . 4 1 1 Full Trace Events 2 | . 1 . 1 Feedback Events . | . . . . Feedback Blocked . | . . . . Robot Schematics Acquired . | . . . . Robots Built . | . . . . Matter . | . . . . Time . | . . . . Total Robot Build Rating . | . . . . Part Schematics Acquired . | . . . . Parts Built . | . . . . Matter . | . . . . Time . | . . . . Total Part Build Rating . | . . . . Parts Repaired 2 | . . . 2 Time 58 | . . . 58 Parts Recycled . | . . . . Recycled Matter . | . . . . Retrieved Matter . | . . . . Retrieved Components . | . . . . Parts Scanalyzed . | . . . . Part Schematics Acquired . | . . . . Parts Damaged . | . . . . Bothacking | -11 -10 -9 -8 ------------ Run | Scr Mat Mat Mat Used RIF Installer . | . . . . Robots Hacked . | . . . . Non-combat . | . . . . Combat . | . . . . Robot Hacks Applied . | . . . . Relay Couplers Released . | . . . . Robots Rewired . | . . . . Allies Hacked . | . . . . Hacks Repelled . | . . . . Allies | -11 -10 -9 -8 -------- Run | Scr Mat Mat Mat Total Allies . | . . . . Largest Group . | . . . . Highest-Rated Group . | . . . . Highest-Rated Ally . | . . . . Total Orders . | . . . . Ally Attacks . | . . . . Total Damage . | . . . . Kills . | . . . . Allies Corrupted . | . . . . Allies Melted . | . . . . Intel | -11 -10 -9 -8 ------- Run | Scr Mat Mat Mat Robot Analysis Total . | . . . . Derelict Logs Recovered . | . . . . Drone Launches . | . . . . Drone Recoveries . | . . . . Exploration | -11 -10 -9 -8 ------------- Run | Scr Mat Mat Mat Turns Passed 1846 | 96 261 627 862 Spaces Moved 1010 | 75 195 334 406 Core 48 | 37 . 9 2 Treads 462 | . . 182 280 Legs 397 | 38 195 40 124 Wheels . | . . . . Hover . | . . . . Flight 103 | . . 103 . Fastest Speed 37 | 50 120 37 100 Average Speed 133 | 110 120 131 145 Slowest Speed 200 | 150 120 200 180 Overloaded Moves . | . . . . Propulsion Burnouts . | . . . . Robots Hopped . | . . . . Cave-ins Triggered . | . . . . Exploration Rate (%) 26 | 3 42 29 32 Regions Visited 3 Branch Regions . Pre-discovered Areas . | . . . . Known Exits Taken 1 | . 1 . . Unknown Exits Taken 2 | 1 . 1 . Scrap Searched . | . . . . Spaces Dug . | . . . . Terrain Destroyed 14 | . . 1 13 Melee . | . . . . Projectile 1 | . . 1 . AOE 13 | . . . 13 Terrain Rammed . | . . . . Walls Destroyed . | . . . . Machines Disabled . | . . . . Actions | -11 -10 -9 -8 --------- Run | Scr Mat Mat Mat Total 1344 | 88 211 479 566 Wait 122 | . 6 77 39 Move 1007 | 74 194 333 406 Hop . | . . . . Pick Up 49 | 8 4 16 21 Fast Attach . | . . . . Attach 38 | 6 1 15 16 Detach 1 | . . 1 . Swap 4 | . . 1 3 Drop 8 | . . 1 7 Fire 111 | . 6 35 70 Melee 3 | . . . 3 Ram . | . . . . Kick 1 | . . . 1 Crush . | . . . . Escape Stasis . | . . . . Rewire . | . . . . Trap . | . . . . Miscellaneous . | . . . . Route ------- -11/Scrapyard -10/Materials (discovered 3 exits: *Mat x3) -9/Materials -8/Materials History --------- Turn | Location | Event 9 | -11/Scrapyard | Discovered new exit (range 15) 97 | -11/Scrapyard | Entered Materials 131 | -10/Materials | Identified exit to Materials 307 | -10/Materials | Build established: Mutant 358 | -10/Materials | Entered another Materials area 358 | -9/Materials | Evolved 2 slots: Power x1, Utility x1 514 | -9/Materials | Lost 3 parts (1p1n1w) 636 | -9/Materials | Core integrity fell below 50% 701 | -9/Materials | Lost 9 parts (2p3n1u3w) 910 | -9/Materials | Discovered new exit (range 15) 985 | -9/Materials | Entered another Materials area 985 | -8/Materials | Evolved 2 slots: Utility x2 1409 | -8/Materials | Lost 4 parts (1p1u2w) 1650 | -8/Materials | Repaired Aluminum Leg 1682 | -8/Materials | Repaired Imp. Ion Engine 1810 | -8/Materials | Core integrity fell below 50% 1843 | -8/Materials | Core integrity fell below 20% 1847 | -8/Materials | Destroyed by G-47 Trooper with Particle Gun Last Messages --------------- 01791_ Beam Rifle destroyed. 01803_ Imp. Ion Engine destroyed. 01806_ Imp. Sensor Array destroyed. 01815_ ECM Suite destroyed. 01820_ Aluminum Leg destroyed. 01825_ Acquired Electrolaser. 01827_ Nuclear Core destroyed. 01829_ L-31 Rogue destroyed. 01830_ U-05 Engineer builds a Door. 01831_ Electrolysis Chamber disabled. 01833_ Scanalyzer disabled. 01833_ Electrolaser destroyed. 01835_ Acquired 10 matter. 01835_ Aluminum Leg destroyed. 01837_ Lgt. Nuclear Core destroyed. 01837_ Acquired Katana. 01839_ G-50 Soldier destroyed. 01842_ Y-45 Defender destroyed. 01842_ K-01 Serf collects debris. 01845_ G-47 Trooper destroyed. Map ----- +----------------------------------------------------+ | ?????????????????#??####+### #?????????????????? | | ?#??????????????#???# ! #?????????????????? | | ????????????????????# %* #?????????????????? | | ??????????? ????#???# #?????????????????? | | ???????????????? ???### ########?????????????????? | | ??????????????#???????# #????????????????????????? | | ??????????????? ??????# #????????????????????????? | | ??????????????????????# #????????????????????????? | | ??????????????????????# #####????????????????????? | | ????????# ########### ########+#####???????? | | ????????# ???????? | | ????????+ ???????? | | ????????# ???????? | | ????????############### ###+### ????????? | | ????????????????######## ##??? ???? ??????????? | | ????????????????" """ # #??????#??????????????? | | ???????????????""""""" # #?????????????????????? | | ???????????????"""" " + ###???????????????????? | | ??????????# # +???????????????????? | | ??????????# * # ###???????????????????? | | ??????????############?# #?????????????????????? | | ???????????????????######+#####??????????????????? | | ???????????????????# = "" #??????????????????? | | ???????????????????## !Y""S #??????????????????? | | ????????????????????# kg="= #??????????????????? | | ????????????????????# ""[@%=* #??????????????????? | | ????????????????????# """%*%= #??????????????????? | | ????????????????????# "" !* #??????????????????? | | ????????????????????# Y g #??????????????????? | | ????????????????????# g #??????????????????? | | ????????????????????###########??????????????????? | | ?????????????????????????????????????????????????? | | ?????????????????????????????????????????????????? | | ?????????????????????????????????????????????????? | | ?????????????????????????????????????????????????? | | ?????????????????????????????????????????????????? | | ?????????????????????????????????????????????????? | | ?????????????????????????????????????????????????? | | ?????????????????????????????????????????????????? | | ?????????????????????????????????????????????????? | | ?????????????????????????????????????????????????? | | ?????????????????????????????????????????????????? | | ?????????????????????????????????????????????????? | | ?????????????????????????????????????????????????? | | ?????????????????????????????????????????????????? | | ?????????????????????????????????????????????????? | | ?????????????????????????????????????????????????? | | ?????????????????????????????????????????????????? | | ?????????????????????????????????????????????????? | | ?????????????????????????????????????????????????? | +----------------------------------------------------+ Best States ------------- Heat Dissipation 41 Energy Generation 23 Energy Capacity 405 Matter Stores 300 Matter Capacity 300 Sight Range 18 Robot Scan Range 13 Terrain Scan Range 20 Terrain Scan Density 10 ECM Strength 1 Evasion (%) 62 Recoil Reduction 2 Item Schematics ----------------- None Robot Schematics ------------------ None Fabricated ------------ Nothing Alien Tech Used ----------------- None Achievements -------------- None Challenges ------------ None Game ------ Seed AbsorptionCombatSuite Manual? 0 Play Time 00:32:52 Cumulative 97.0 hours Start 2020.10.16 @ 17:51:38 End 2020.10.16 @ 20:13:40 Sessions 1 Manual Loads 0 Difficulty Rogue Special Mode None Game No. 78 Rogue 78 Adventurer 0 Explorer 0 Win Type - Total 0 Types 0/0/0/0/0/0/0/0/0 Lore% 34 Gallery% 37 Achievement% 28 Wizard Run 0 Options --------- ASCII 0 Keyboard 0 Movement Arrows Keybinds 0 Fullscreen 1 Font 18/SmallcapsGlow Map View 76x50 Tactical HUD 1 Map Filters NONE Filters NONE Steam 1 RUN: 14b928df-c510-4096-b522-6776b832ef3d